Cogmind - Beta 10.1 @@@ ROGUE MODE // 2020.10.06 @ 20:15:41 Player: Trantor Result: Self-destructed Performance ------------- Evolutions (2) 1000 Regions Visited (5) 1000 Robots Destroyed (24) 120 Value Destroyed (457) 457 Prototype IDs (2) 40 Alien Tech Used (0) 0 Bonus (0) 0 TOTAL SCORE: 2617 Bonus ------- None Cogmind --------- Core Integrity 442/550 Matter 133/300 Energy 100/100 System Corruption 0% Temperature Cool (0) Movement Core (1350) Ox26 Location -8/Materials Parts ------- > --- POWER (1) -------- (None) > --- PROPULSION (2) --- (None) > --- UTILITY (4) ------ High-capacity Storage Unit High-capacity Storage Unit Improved Light Armor Plating > --- WEAPON (4) ------- Flak Cannon Flak Cannon > --- INVENTORY (20) --- Ion Engine Wheel Wheel Wheel Cesium-ion Thruster Large Storage Unit Large Storage Unit High-capacity Storage Unit High-capacity Matter Pod (200) High-capacity Matter Pod (200) Sensor Array Signal Interpreter EM Pulse Gun EM Pulse Gun Small Laser Assault Rifle Shock Bomb Launcher Rocket Launcher Hammer Peak State ------------ > --- POWER ------------ Ion Engine > --- PROPULSION ------- Wheel Wheel > --- UTILITY ---------- High-capacity Storage Unit High-capacity Storage Unit Improved Light Armor Plating > --- WEAPON ----------- Light Assault Rifle Flak Cannon Flak Cannon Flak Cannon > --- INVENTORY -------- Ion Engine Wheel Wheel Wheel Large Storage Unit Large Storage Unit High-capacity Storage Unit High-capacity Matter Pod High-capacity Matter Pod Sensor Array Signal Interpreter EM Pulse Gun Small Laser Assault Rifle Shock Bomb Launcher Rocket Launcher Hammer [Rating: 20] Favorites ----------- Power Ion Engine Engine Ion Engine Propulsion Wheel Leg Aluminum Leg Wheel Wheel Utility High-capacity Storage Unit Device Terrain Scanner Storage High-capacity Storage Unit Processor Visual Processing Unit Protection Improved Light Armor Plating Weapon Assault Rifle Energy Gun EM Pulse Gun Energy Cannon Beam Cannon Ballistic Gun Assault Rifle Ballistic Cannon Flak Cannon Build | -11 -10 -10 -10 -9 -8 ------- Run | Scr Mat Min Exi Min Mat Slots Evolved 4 | . . . . . 4 Power . | . . . . . . Propulsion . | . . . . . . Utility 2 | . . . . . 2 Weapon 2 | . . . . . 2 Parts Attached 34 | 6 21 . 3 . 4 Power 3 | 1 2 . . . . Engine 3 | 1 2 . . . . Core . | . . . . . . Reactor . | . . . . . . Propulsion 13 | 2 11 . . . . Treads . | . . . . . . Leg 4 | . 4 . . . . Wheel 9 | 2 7 . . . . Hover . | . . . . . . Flight . | . . . . . . Utility 9 | 1 4 . 3 . 1 Device 1 | . 1 . . . . Storage 6 | 1 2 . 3 . . Processor 1 | . 1 . . . . Hackware . | . . . . . . Protection 1 | . . . . . 1 Artifact . | . . . . . . Weapon 9 | 2 4 . . . 3 Energy Gun 3 | 1 2 . . . . Energy Cannon 1 | . 1 . . . . Ballistic Gun 2 | 1 1 . . . . Ballistic Cannon 3 | . . . . . 3 Launcher . | . . . . . . Special Weapon . | . . . . . . Impact Weapon . | . . . . . . Slashing Weapon . | . . . . . . Piercing Weapon . | . . . . . . Special Melee Weapon . | . . . . . . Unidentified Prototypes . | . . . . . . Parts Lost 9 | . 4 . . . 5 Power 3 | . 2 . . . 1 Propulsion 3 | . 1 . . . 2 Utility . | . . . . . . Weapon 3 | . 1 . . . 2 Highest Loss Streak 5 | . 2 . . . 5 Average Slot Usage (%) 96 | . 97 100 100 100 84 Engine 12 | . 12 14 14 14 9 Wheel 25 | . 27 28 28 28 15 Device 1 | . 4 . . . . Storage 18 | . 14 14 22 28 18 Processor 6 | . 9 14 5 . . Protection 1 | . . . . . 8 Energy Gun 3 | . 8 . . . . Energy Cannon 2 | . 5 . . . . Ballistic Gun 18 | . 14 28 28 28 8 Ballistic Cannon 4 | . . . . . 26 Naked Turns . | . . . . . . Heaviest Build 91 | 11 26 24 72 72 91 Greatest Support 26 | 20 26 20 20 20 20 Greatest Overweight (x) 30 | . 1 1 3 3 30 Average Overweight (x) 1 | . . 1 1 3 4 Largest Inventory Capacity 20 | 6 10 10 20 20 20 Average Capacity 12 | 4 7 10 15 20 20 Most Carried 19 | 4 10 9 15 16 19 Average Carried 10 | 2 7 9 10 15 17 Final Capacity 20 | 6 10 10 20 20 20 Final Carried 19 | 4 9 9 15 16 19 Class Distribution -------------------- 62% | Mutant 17% | Hauler-Mutant 14% | Hauler-Tank 5% | Scavenger-Mutant Dominant Class ---------------- Mutant | -10/Materials Mutant | -10/Mines Mutant | -10/Exiles Hauler-Mutant | -9/Mines Hauler-Tank | -8/Materials Resources | -11 -10 -10 -10 -9 -8 ----------- Run | Scr Mat Min Exi Min Mat Matter Collected 790 | 224 404 10 90 62 . Remotely . | . . . . . . Salvage Created 649 | . 560 . . 48 41 Parts 45 | . 36 . . 3 6 Haulers Intercepted 1 | . . . . . 1 Recyclers Shooed 2 | . 1 . . 1 . Parts Field Recycled . | . . . . . . Retrieved Matter . | . . . . . . Parts Self-Destructed . | . . . . . . Prevented . | . . . . . . Kills | -11 -10 -10 -10 -9 -8 ------- Run | Scr Mat Min Exi Min Mat Combat Hostiles Destroyed 17 | . 13 . . 3 1 Guns 11 | . 8 . . 3 . Cannons 6 | . 5 . . . 1 Classes Destroyed 7 | . 6 . . . 1 Worker 1 | . 1 . . . . Hauler 1 | . . . . . 1 Recycler 1 | . 1 . . . . Operator 2 | . 1 . . . 1 Watcher 2 | . 2 . . . . Swarmer 10 | . 6 . . 3 1 Grunt 7 | . 7 . . . . Best Kill Streak 4 | . 4 . . 3 1 Combat Bots Only 4 | . 4 . . 3 1 Max Kills in Single Turn 1 | . 1 . . 1 1 Gunslinging . | . . . . . . Exploded . | . . . . . . Melee . | . . . . . . Uniques/NPCs Destroyed . | . . . . . . Combat | -11 -10 -10 -10 -9 -8 -------- Run | Scr Mat Min Exi Min Mat Damage Taken 1592 | . 560 . . 102 930 Core 230 | . 105 . . 17 108 Absorbed by Shields . | . . . . . . Core Remaining (%) 75 | 100 . . . 51 . Volleys Fired 77 | . 61 . . 8 8 Largest 4 | . 2 . . 2 4 Hottest 152 | . 85 . . 40 152 Shots Fired 168 | . 120 . . 16 32 Gun 119 | . 95 . . 16 8 Cannon 49 | . 25 . . . 24 Launcher . | . . . . . . Special . | . . . . . . Kinetic 109 | . 61 . . 16 32 Thermal 38 | . 38 . . . . Explosive . | . . . . . . Electromagnetic 21 | . 21 . . . . Robot Hit Streak 7 | . 7 . . 5 6 Robot Miss Streak 17 | . 5 . . 1 17 Penetration Max . | . . . . . . Secondary Targets 1 | . . . . 1 . Max Gunslinging Chain 1 | . . . . 1 . Shots Hit Robots 93 | . 63 . . 11 19 Core Hits 42 | . 25 . . 3 14 Critical Hits 1 | . . . . 1 . Critical Kills . | . . . . . . Critical Parts Destroyed 1 | . . . . 1 . Melee Attacks . | . . . . . . Impact . | . . . . . . Slashing . | . . . . . . Piercing . | . . . . . . Sneak Attacks . | . . . . . . Combat Hostiles . | . . . . . . Follow-up Attacks . | . . . . . . Damage Inflicted 1350 | . 928 . . 131 291 Guns 756 | . 603 . . 131 22 Cannons 477 | . 208 . . . 269 Explosions 117 | . 117 . . . . Melee . | . . . . . . Ramming . | . . . . . . Kinetic 778 | . 356 . . 131 291 Thermal 406 | . 406 . . . . Explosive . | . . . . . . Electromagnetic 166 | . 166 . . . . Impact . | . . . . . . Slashing . | . . . . . . Piercing . | . . . . . . Highest Corruption . | . . . . . . Average Corruption . | . . . . . . Corruption Purged . | . . . . . . Overload Shots . | . . . . . . Overflow Damage 17 | . 17 . . . . Projectiles . | . . . . . . Explosions 17 | . 17 . . . . Melee . | . . . . . . Knockbacks 6 | . . . . . 6 Impact . | . . . . . . Kinetic 4 | . . . . . 4 Secondary 2 | . . . . . 2 Self-Inflicted Damage 69 | . 69 . . . . Shots 2 | . 2 . . . . Rammed . | . . . . . . Targets Rammed . | . . . . . . Kicked . | . . . . . . Crushed . | . . . . . . Highest Temperature 333 | . 198 . . . 333 Average Temperature 69 | . 51 . . . 121 Received Heat Transfer 591 | . 177 . . . 414 Effects 3 | . . . . . 3 Interference 3 | . . . . . 3 Siege Activations . | . . . . . . Robots Corrupted . | . . . . . . Combat Hostiles . | . . . . . . Parts Fried . | . . . . . . Impact Corruptions . | . . . . . . Robots Melted . | . . . . . . Combat Hostiles . | . . . . . . Parts Melted 3 | . 3 . . . . Heat Transferred 781 | . 781 . . . . Parts Sabotaged . | . . . . . . Parts Stolen . | . . . . . . Parts Stripped . | . . . . . . Power Chain Reactions 2 | . 2 . . . . Missiles Intercepted . | . . . . . . Alert | -11 -10 -10 -10 -9 -8 ------- Run | Scr Mat Min Exi Min Mat Peak Influence 276 | . 276 45 . 70 64 Initial 45 | . . 45 . . 27 Average 93 | . 134 45 . 31 42 Maximum Alert Level 1 | . 1 . . . . Low Security (%) 84 | 100 73 100 . 100 100 Level 1 15 | . 26 . . . . Level 2 . | . . . . . . Level 3 . | . . . . . . Level 4 . | . . . . . . Level 5 . | . . . . . . High Security . | . . . . . . Max Security . | . . . . . . Squads Dispatched 4 | . 3 . . . 1 Investigation 1 | . 1 . . . . Extermination . | . . . . . . Reinforcement 3 | . 2 . . . 1 Assault . | . . . . . . Garrison . | . . . . . . Intercept . | . . . . . . Construction Impeded . | . . . . . . Haulers Reinforced . | . . . . . . Stealth | -11 -10 -10 -10 -9 -8 --------- Run | Scr Mat Min Exi Min Mat Distress Signals . | . . . . . . Communications Jammed . | . . . . . . Distress Signals . | . . . . . . Times Spotted 38 | . 25 . . 5 8 Peak Tracking Total 6 | . 4 . . 3 6 Tactical Retreats 4 | . 1 . . 2 1 Traps | -11 -10 -10 -10 -9 -8 ------- Run | Scr Mat Min Exi Min Mat Traps Triggered 2 | . 1 . . . 1 Indirectly . | . . . . . . Trap Hack Attempts . | . . . . . . Triggered . | . . . . . . Disarmed . | . . . . . . Reprogrammed . | . . . . . . Reused . | . . . . . . Traps Extracted . | . . . . . . Installed . | . . . . . . Triggered . | . . . . . . Machines | -11 -10 -10 -10 -9 -8 ---------- Run | Scr Mat Min Exi Min Mat Machines Disabled 2 | . 2 . . . . Max in Single Turn 1 | . 1 . . . . Machines Sabotaged . | . . . . . . Garrisons Compromised . | . . . . . . Overloaded Fab Kills . | . . . . . . Fab Network Shutdowns . | . . . . . . Hacking | -11 -10 -10 -10 -9 -8 --------- Run | Scr Mat Min Exi Min Mat Machines Accessed 7 | . 4 . 3 . . Terminals 4 | . 4 . . . . Fabricators . | . . . . . . Repair Stations . | . . . . . . Recycling Units . | . . . . . . Scanalyzers . | . . . . . . Garrison Access . | . . . . . . Total Hacks 54 | . 14 . 40 . . Successful 47 | . 7 . 40 . . Failed 7 | . 7 . . . . Catastrophic 2 | . 2 . . . . Database Lockouts . | . . . . . . Manual 3 | . 3 . . . . Terminals 14 | . 14 . . . . Fabricators . | . . . . . . Repair Stations . | . . . . . . Recycling Units . | . . . . . . Scanalyzers . | . . . . . . Garrison Access . | . . . . . . Terminal Hacks 47 | . 7 . 40 . . Record 42 | . 2 . 40 . . Prototype ID Bank 1 | . 1 . . . . Branch Access Points 1 | . 1 . . . . Unreport Threat 1 | . 1 . . . . Hauler Manifests 1 | . 1 . . . . Zone Layout 1 | . 1 . . . . Fabricator Hacks . | . . . . . . Repair Station Hacks . | . . . . . . Recycling Unit Hacks . | . . . . . . Scanalyzer . | . . . . . . Garrison Access Hacks . | . . . . . . Unauthorized Hacks . | . . . . . . Terminals . | . . . . . . Fabricators . | . . . . . . Repair Stations . | . . . . . . Recycling Units . | . . . . . . Scanalyzers . | . . . . . . Garrison Access . | . . . . . . Data Cores Recovered . | . . . . . . Used . | . . . . . . Hacking Detections 4 | . 4 . . . . Full Trace Events . | . . . . . . Feedback Events . | . . . . . . Feedback Blocked . | . . . . . . Robot Schematics Acquired . | . . . . . . Robots Built . | . . . . . . Matter . | . . . . . . Time . | . . . . . . Total Robot Build Rating . | . . . . . . Part Schematics Acquired . | . . . . . . Parts Built . | . . . . . . Matter . | . . . . . . Time . | . . . . . . Total Part Build Rating . | . . . . . . Parts Repaired . | . . . . . . Time . | . . . . . . Parts Recycled . | . . . . . . Recycled Matter . | . . . . . . Retrieved Matter . | . . . . . . Retrieved Components . | . . . . . . Parts Scanalyzed . | . . . . . . Part Schematics Acquired . | . . . . . . Parts Damaged . | . . . . . . Bothacking | -11 -10 -10 -10 -9 -8 ------------ Run | Scr Mat Min Exi Min Mat Used RIF Installer . | . . . . . . Robots Hacked . | . . . . . . Non-combat . | . . . . . . Combat . | . . . . . . Robot Hacks Applied . | . . . . . . Relay Couplers Released . | . . . . . . Robots Rewired . | . . . . . . Allies Hacked . | . . . . . . Hacks Repelled . | . . . . . . Allies | -11 -10 -10 -10 -9 -8 -------- Run | Scr Mat Min Exi Min Mat Total Allies . | . . . . . . Largest Group . | . . . . . . Highest-Rated Group . | . . . . . . Highest-Rated Ally . | . . . . . . Total Orders . | . . . . . . Ally Attacks . | . . . . . . Total Damage . | . . . . . . Kills . | . . . . . . Allies Corrupted . | . . . . . . Allies Melted . | . . . . . . Intel | -11 -10 -10 -10 -9 -8 ------- Run | Scr Mat Min Exi Min Mat Robot Analysis Total . | . . . . . . Derelict Logs Recovered 1 | . . . . 1 . Drone Launches . | . . . . . . Drone Recoveries . | . . . . . . Exploration | -11 -10 -10 -10 -9 -8 ------------- Run | Scr Mat Min Exi Min Mat Turns Passed 1868 | 66 801 56 497 139 309 Spaces Moved 1513 | 53 598 63 515 92 192 Core 6 | 3 . . . . 3 Treads . | . . . . . . Legs . | . . . . . . Wheels 1507 | 50 598 63 515 92 189 Hover . | . . . . . . Flight . | . . . . . . Fastest Speed 50 | 50 80 90 90 110 110 Average Speed 98 | 78 89 90 94 110 140 Slowest Speed 1550 | 80 90 90 110 110 1550 Overloaded Moves . | . . . . . . Propulsion Burnouts . | . . . . . . Robots Hopped . | . . . . . . Cave-ins Triggered . | . . . . . . Exploration Rate (%) 37 | 4 87 12 70 31 22 Regions Visited 5 Branch Regions 3 Pre-discovered Areas 2 | . . . 1 1 . Known Exits Taken 1 | . 1 . . . . Unknown Exits Taken 4 | 1 . 1 1 1 . Scrap Searched 2 | . . 1 . 1 . Spaces Dug . | . . . . . . Terrain Destroyed 7 | . 7 . . . . Melee . | . . . . . . Projectile . | . . . . . . AOE 7 | . 7 . . . . Terrain Rammed . | . . . . . . Walls Destroyed . | . . . . . . Machines Disabled . | . . . . . . Actions | -11 -10 -10 -10 -9 -8 --------- Run | Scr Mat Min Exi Min Mat Total 1736 | 74 751 62 522 115 212 Wait 68 | 12 41 . . 15 . Move 1508 | 52 597 62 514 91 192 Hop . | . . . . . . Pick Up 27 | 4 13 . 4 1 5 Fast Attach 17 | 6 7 . 1 . 3 Attach 5 | . 4 . . . 1 Detach 4 | . 2 . 1 . 1 Swap 12 | . 10 . 2 . . Drop 18 | . 16 . . . 2 Fire 77 | . 61 . . 8 8 Melee . | . . . . . . Ram . | . . . . . . Kick . | . . . . . . Crush . | . . . . . . Escape Stasis . | . . . . . . Rewire . | . . . . . . Trap . | . . . . . . Miscellaneous . | . . . . . . Route ------- -11/Scrapyard -10/Materials (discovered 4 exits: [*Mat x2] / *Min x2) -10/Mines -10/Exiles (discovered 2 exits: [*Min x2]) -9/Mines -8/Materials History --------- Turn | Location | Event 11 | -11/Scrapyard | Discovered new exit (range 16) 67 | -11/Scrapyard | Entered Materials 188 | -10/Materials | Identified exit to Mines 300 | -10/Materials | Build established: Mutant 391 | -10/Materials | Discovered new exit (range 18) 771 | -10/Materials | Discovered new exit (range 8) 868 | -10/Materials | Entered Mines 912 | -10/Mines | Assembled infested the area 917 | -10/Mines | Met a Derelict bent on vengeance 920 | -10/Mines | Deemed a non-threat by the Exiles lab entrance 921 | -10/Mines | Discovered new exit (range 5) 924 | -10/Mines | Entered Exiles 936 | -10/Exiles | Discovered new exit (range 16) 956 | -10/Exiles | Met 8R-AWN 971 | -10/Exiles | Met EX-HEX 1006 | -10/Exiles | Met EX-BIN 1024 | -10/Exiles | Met EX-DEC 1051 | -10/Exiles | Learned location of Zion (-6) 1118 | -10/Exiles | Discovered new exit (range 11) 1421 | -10/Exiles | Entered Mines 1530 | -9/Mines | Discovered new exit (range 8) 1560 | -9/Mines | Entered Materials 1560 | -8/Materials | Evolved 4 slots: Utility x2, Weapon x2 1869 | -8/Materials | Self-destructed Last Messages --------------- 01704_ Acquired EM Pulse Gun. 01758_ O-16 Technician: "IFF HANDSHAKE FAILED. SECURING TERMINAL." 01763_ ALERT: Hostiles spotted, dispatching reinforcements to Terminal M003. 01776_ Acquired Cesium-ion Thruster. 01784_ O-16 Technician destroyed. 01798_ K-01 Serf collects debris. 01811_ K-01 Serf cleans the Processing Tank. 01815_ Wheel destroyed. 01815_ S-10 Pest knocked back. 01815_ S-10 Pest destroyed. 01818_ R-06 Scavenger knocked back. 01820_ Wheel destroyed. 01822_ G-47 Trooper knocked back. 01825_ Overheating: System interference. 01825_ Flak Cannon temporarily disabled. 01838_ Lgt. Assault Rifle destroyed. 01854_ Flak Cannon destroyed. 01857_ R-06 Scavenger collects Lgt. Ion Engine. 01860_ R-06 Scavenger collects Flight Unit. 01860_ Ion Engine destroyed. Map ----- +----------------------------------------------------+ | ?????????????????????????????????????????????????? | | ?????????????????????????????????????????????????? | | ?????????????????????????????????????????????????? | | ?????????????????????????????????????????????????? | | ?????????????????????????????????????????????????? | | ?????????????????????????????????????????????????? | | ?????????????????????????????????????????????????? | | ?????????????????????????????????????????????????? | | ?????????????????????????????????????????????????? | | ???????????????????????????????????????????"?????? | | ???????????????????????????????????????????" ????? | | ?????????????????????????? ?????????????"" ???? | | ?????????????????????????? ? ???????? #### | | ?????????????????????????? a ????????! | | ?????????????????????????# o????????? | | ?????????????????????????# ?????????? | | ?????????????????????????# ????????????? | | ?????????????????????????# ????#????????????# | | ?????????????????????????# ??? #????????????# | | ?????????????????????????# """? #????????????# | | ???????????###???????????# """"" #????????????# | | ???????????? ??????????# """"" #????????????# | | ?????????????? ?????????# """"" #??########### | | ??????????????? ????????# """ #??# # | | ??????????????###+######## #### # | | ??????????????# %g r g @ + """"""" | | ??????????????# t### ####### """"""" | | ??????????????# """ !#?# u #?????# """"""" | | ??????????????# """ #?# #?????# """"""" | | ??????????????# """ ####### #?????# """"""" | | ??????????????# """ # """ # #?????# # | | ??????????????# """ # "T" # ########+#####+## | | ??????????????? # + w | | ??????????????# ! # # | | ??????????????########## ##### """ ######## | | ???????????????????????# #???# """ #????# | | ???????????????????????# """ #???# """ ###### | | ???????????????????????# """ #???# + | | ???????????????????????# """ #???# #????# | | ???????????????????????# #???# #####+#####?# | | ???????????????????????# ##### # #?# | | ???????????????????????# + + ##### | | ???????????????????????############# + | | ???????????????????????????????????# ##### | | ???????????????????????????????????# #???? | | ???????????????????????????????????# #???? | | ???????????????????????????????????# #???? | | ???????????????????????????????????# #???? | | ???????????????????????????????????###########???? | | ?????????????????????????????????????????????????? | +----------------------------------------------------+ Best States ------------- Heat Dissipation 31 Energy Generation 10 Energy Capacity 250 Matter Stores 300 Matter Capacity 300 Sight Range 18 Terrain Scan Range 14 Terrain Scan Density 10 Armor Coverage 150 Evasion (%) 44 Item Schematics ----------------- None Robot Schematics ------------------ None Fabricated ------------ Nothing Alien Tech Used ----------------- None Achievements -------------- None Challenges ------------ None Game ------ Seed MeleePhasingAirjet Manual? 0 Play Time 00:27:00 Cumulative 47.7 hours Start 2020.10.06 @ 19:48:26 End 2020.10.06 @ 20:15:41 Sessions 1 Manual Loads 0 Difficulty Rogue Special Mode None Game No. 21 Rogue 6 Adventurer 15 Explorer 0 Win Type - Total 0 Types 0/0/0/0/0/0/0/0/0 Lore% 32 Gallery% 33 Achievement% 29 Wizard Run 0 Options --------- ASCII 0 Keyboard 1 Movement Vi Keybinds 1 Fullscreen 2 Font 14/SmallcapsGlow Map View 84x54 Tactical HUD 1 Map Filters NONE Filters NONE Steam 1 RUN: 92ccf1a9-02a9-462c-9ebf-c36ce743bf14